bitfinex/quotes_SOLUSD_20250306
["timestamp","ask_amount","ask_price","bid_price","bid_amount"]
[1741270035280,7.66,147.46,147.43,7.6352]
[1741270035573,155.3,147.45,147.41,30.96697629]
[1741270035879,155.3,147.45,147.43,0.14216157]
[1741270036278,162.082,147.45,147.41,30.96697629]
[1741270036489,155.3,147.44,147.39,8.0943]
[1741270036658,80.8,147.43,147.42,30.96697629]
[1741270036859,80.8,147.43,147.42,31.10913786]
[1741270037676,14.4404,147.49,147.43,0.14216157]
[1741270037876,155.3,147.48,147.47,0.14216157]
[1741270038084,74.5,147.48,147.47,0.14216157]
[1741270038663,74.5,147.48,147.46,0.14216157]
[1741270038876,0.03,147.51,147.48,0.14216157]
[1741270039081,6.8092,147.51,147.48,31.10913786]
[1741270039266,14.4492,147.51,147.48,0.14216157]
[1741270039589,31.3972,147.51,147.45,0.14216157]
[1741270039890,74.5,147.5,147.45,0.14216157]
[1741270040063,74.5,147.5,147.44,0.14216157]
[1741270040383,6.7801,147.49,147.44,31.10913786]
[1741270040591,74.78432314,147.48,147.42,30.96697629]
[1741270040766,74.5,147.47,147.41,30.96697629]
[1741270040972,0.28432314,147.48,147.39,51.61127629]
[1741270040973,74.78432314,147.46,147.39,51.61127629]
[1741270041168,82.14,147.45,147.43,312.0]
[1741270041396,74.5,147.44,147.43,312.14216157]
[1741270042066,74.5,147.44,147.43,31.10913786]
[1741270042265,74.5,147.44,147.43,0.14216157]
[1741270042985,80.8,147.44,147.43,37.89193786]
[1741270043286,80.8,147.44,147.43,31.14213786]
[1741270044294,80.8,147.46,147.44,0.14216157]
[1741270044466,80.8,147.46,147.44,31.10913786]
[1741270044670,80.8,147.46,147.45,31.10913786]
[1741270045178,80.8,147.46,147.45,312.14216157]
[1741270048292,80.8,147.46,147.45,343.10913786]
[1741270048673,80.8,147.46,147.45,349.89103786]
[1741270049007,0.03,147.48,147.46,7.97346157]
[1741270049294,0.03,147.48,147.47,31.10913786]
[1741270050302,0.03,147.48,147.47,37.89013786]
[1741270050595,80.8,147.5,147.49,20.14216157]
[1741270050800,0.03,147.51,147.5,0.14216157]
[1741270051098,0.03,147.51,147.5,31.10913786]
[1741270051881,0.03,147.54,147.52,0.14216157]
[1741270052086,0.03,147.54,147.53,51.10913786]
[1741270052487,0.03,147.54,147.53,369.88733786]
[1741270052877,0.03,147.54,147.53,363.10913786]
[1741270053401,0.03,147.54,147.53,369.88733786]
[1741270053781,0.03,147.54,147.53,363.10913786]
[1741270055500,0.03,147.54,147.53,369.88733786]
[1741270055888,0.03,147.54,147.53,363.10913786]
[1741270056780,0.03,147.54,147.53,343.10913786]
[1741270056980,0.03,147.54,147.53,342.96697629]
[1741270057386,0.03,147.54,147.53,343.10913786]
[1741270057814,0.03,147.54,147.53,342.96697629]
[1741270058116,0.03,147.54,147.53,343.10913786]
[1741270058990,0.03,147.54,147.53,312.14216157]
[1741270059188,0.03,147.54,147.53,343.10913786]
[1741270059720,0.03,147.54,147.53,349.88733786]
[1741270064511,0.03,147.59,147.57,0.14216157]
[1741270064695,74.5,147.64,147.62,0.14216157]
[1741270064908,0.03,147.66,147.64,15.24046157]
[1741270065208,0.03,147.66,147.65,19.45659988]
[1741270066502,0.03,147.66,147.65,0.14216157]
[1741270067695,0.03,147.66,147.65,331.45659988]
[1741270068205,0.03,147.66,147.65,19.45659988]
[1741270068405,0.03,147.66,147.65,0.14216157]
[1741270068717,0.03,147.66,147.65,31.03691703]
[1741270069190,0.03,147.66,147.65,0.14216157]
[1741270070021,155.3,147.65,147.6,38.64875546]
[1741270070218,155.3,147.64,147.59,31.10799781]
[1741270070518,155.3,147.64,147.6,0.14216157]
[1741270070812,0.03,147.66,147.59,0.21324235]
[1741270070813,155.3,147.63,147.59,0.21324235]
[1741270071026,155.3,147.62,147.56,7.9612]
[1741270071221,95.1946,147.61,147.6,0.14216157]
[1741270071401,14.3946,147.61,147.6,0.14216157]
[1741270071600,14.3946,147.61,147.59,312.0]
[1741270071813,7.62,147.61,147.6,0.14216157]
[1741270072015,7.62,147.61,147.59,312.0]
[1741270072314,7.62,147.61,147.52,6.7787]
[1741270072538,155.3,147.6,147.54,30.89475546]
[1741270072729,155.3,147.6,147.55,0.14216157]
[1741270072898,155.3,147.59,147.52,30.89475546]
[1741270073219,6.7764,147.57,147.51,39.13985546]
[1741270073425,6.7764,147.57,147.52,0.14216157]
[1741270073591,6.7764,147.57,147.52,30.89475546]
[1741270073798,6.7764,147.57,147.53,0.14216157]
[1741270074403,162.076,147.58,147.54,31.03691703]
[1741270074601,80.8,147.57,147.56,0.14216157]
[1741270074822,80.8,147.57,147.56,31.03691703]
[1741270075122,80.8,147.57,147.56,0.14216157]
[1741270075318,80.8,147.57,147.56,312.14216157]
[1741270076315,81.276,147.58,147.57,0.14216157]
[1741270076525,7.06032314,147.58,147.5,30.89475546]
[1741270076731,80.8,147.56,147.51,30.89475546]
[1741270076900,80.8,147.56,147.52,30.89475546]
[1741270077301,80.8,147.56,147.54,0.14216157]
[1741270077519,80.8,147.55,147.54,0.14216157]
[1741270077823,155.3,147.57,147.53,51.03691703]
[1741270078019,155.3,147.57,147.56,31.03691703]
[1741270078396,155.3,147.57,147.56,0.14216157]
[1741270079219,155.3,147.57,147.56,31.03691703]
[1741270079411,155.3,147.57,147.56,349.81381703]
[1741270079806,80.8,147.57,147.56,349.81381703]
[1741270080125,80.8,147.57,147.56,343.03691703]
[1741270080325,87.5764,147.57,147.56,312.0]
[1741270080523,80.8,147.57,147.56,312.0]
[1741270080731,80.8,147.57,147.56,349.81381703]
[1741270081036,80.8,147.61,147.57,0.14216157]
[1741270081231,74.5,147.62,147.59,20.14216157]
[1741270081232,80.8,147.6,147.59,20.14216157]
[1741270081402,80.8,147.6,147.59,26.91766157]
[1741270081799,80.8,147.64,147.6,0.14216157]
[1741270082022,80.8,147.63,147.62,31.03691703]
[1741270082219,80.83,147.66,147.63,0.14216157]
[1741270082410,80.83,147.66,147.65,31.03691703]
[1741270082921,80.83,147.66,147.65,0.14216157]
[1741270083101,6.8023,147.66,147.65,0.14216157]
[1741270083306,0.03,147.66,147.65,0.14216157]
[1741270083921,20.03,147.66,147.65,0.14216157]
[1741270084119,0.28432314,147.65,147.56,0.033]
[1741270084323,0.28432314,147.62,147.56,0.033]
[1741270085420,6.7746,147.61,147.56,0.033]
[1741270085725,0.28432314,147.62,147.56,0.033]
[1741270085931,7.05852314,147.62,147.56,31.06991703]
[1741270086125,6.91636157,147.62,147.56,31.06991703]
[1741270086318,6.7742,147.62,147.56,31.06991703]
[1741270086507,6.7742,147.62,147.56,0.17516157]
[1741270087108,6.7742,147.62,147.58,0.14216157]
[1741270087408,0.28432314,147.61,147.58,0.14216157]
[1741270087603,0.28432314,147.61,147.56,0.033]
[1741270088010,0.28432314,147.59,147.56,0.033]
[1741270088227,162.9,147.58,147.56,0.033]
[1741270088409,155.3,147.57,147.56,0.033]
[1741270088806,0.28432314,147.57,147.56,0.033]
[1741270089018,7.6,147.58,147.56,0.033]
[1741270089220,74.5,147.57,147.56,0.033]
[1741270089418,74.5,147.57,147.56,37.84681703]
[1741270089616,74.5,147.57,147.56,31.06991703]
[1741270090427,74.5,147.57,147.56,37.84681703]
[1741270090613,14.3744,147.62,147.57,0.14216157]
[1741270090614,81.2749,147.61,147.57,0.14216157]
[1741270091519,73.26929608,147.61,147.57,0.14216157]
[1741270091716,73.26929608,147.61,147.58,0.14216157]
[1741270092017,73.26929608,147.61,147.6,0.14216157]
[1741270092220,72.16929608,147.64,147.6,0.14216157]
[1741270092416,72.16929608,147.63,147.62,0.14216157]
[1741270092727,72.16929608,147.63,147.62,31.03691703]
[1741270092925,72.16929608,147.63,147.62,0.14216157]
[1741270093228,152.96929608,147.63,147.61,0.14216157]
[1741270093410,0.03,147.62,147.61,31.03691703]
[1741270094222,0.03,147.62,147.61,312.14216157]
[1741270094947,0.03,147.62,147.61,343.03691703]
[1741270095112,0.03,147.62,147.61,349.81151703]
[1741270097212,0.03,147.66,147.63,0.14216157]
[1741270097417,0.03,147.66,147.65,31.03691703]
[1741270097614,0.03,147.66,147.65,37.80961703]
[1741270099436,0.03,147.66,147.65,31.03691703]
[1741270099812,0.03,147.66,147.65,37.80961703]
[1741270100011,0.03,147.73,147.68,28.29782314]
[1741270100217,0.03,147.73,147.72,51.03691703]
[1741270100422,0.03,147.73,147.72,363.03691703]
[1741270101432,0.03,147.73,147.72,368.538433]
[1741270101646,0.03,147.74,147.73,0.42648471]
[1741270101851,0.03,147.74,147.73,38.09034017]
[1741270102154,0.03,147.75,147.73,38.09034017]
[1741270102352,0.03,147.81,147.8,31.03691703]
[1741270104744,0.03,147.81,147.8,343.03691703]
[1741270104946,0.03,147.81,147.8,312.14216157]
[1741270105245,0.03,147.81,147.8,343.03691703]
[1741270107641,0.03,147.81,147.8,349.80271703]
[1741270108151,0.03,147.82,147.81,0.14216157]
[1741270108358,0.03,147.82,147.81,31.03691703]
[1741270109554,80.8,147.89,147.85,0.14216157]
[1741270109736,80.8,147.89,147.88,31.03691703]
[1741270110837,80.8,147.89,147.84,20.0]
[1741270110838,152.96929608,147.88,147.84,20.0]
[1741270111050,152.96929608,147.87,147.83,0.14216157]
[1741270111253,80.8,147.86,147.85,0.14216157]
[1741270111756,80.8,147.86,147.81,30.89475546]
[1741270111958,80.8,147.85,147.82,30.89475546]
[1741270112131,80.8,147.84,147.8,38.62145546]
[1741270112335,80.8,147.84,147.83,0.14216157]
[1741270112552,80.8,147.84,147.83,31.03691703]
[1741270113070,80.8,147.84,147.82,0.14216157]
[1741270114066,80.8,147.84,147.83,31.03691703]
[1741270114757,80.8,147.84,147.83,343.03691703]
[1741270115371,152.96929608,147.86,147.83,31.03691703]
[1741270115535,80.8,147.91,147.86,0.14216157]
[1741270115734,80.8,147.9,147.89,0.14216157]
[1741270115950,72.16929608,147.91,147.9,0.14216157]
[1741270116336,72.16929608,147.91,147.88,0.14216157]
[1741270116337,78.93009608,147.91,147.88,0.14216157]
[1741270116840,153.25361922,147.9,147.83,30.89475546]
[1741270117041,152.96929608,147.89,147.84,0.14216157]
[1741270117356,152.96929608,147.89,147.82,30.89475546]
[1741270117545,152.96929608,147.89,147.83,0.14216157]
[1741270117741,0.28432314,147.9,147.75,7.58]
[1741270117742,12.4008,147.87,147.79,30.89475546]
[1741270117947,6.7636,147.85,147.78,37.66135546]
[1741270118256,152.96929608,147.84,147.82,342.89475546]
[1741270118455,80.8,147.83,147.82,343.03691703]
[1741270119435,7.58,147.86,147.82,31.03691703]
[1741270119638,80.8,147.86,147.85,31.03691703]
[1741270119841,80.8,147.86,147.85,0.14216157]
[1741270120158,80.8,147.86,147.85,37.80051703]
[1741270120342,80.8,147.89,147.86,0.14216157]
[1741270120547,80.8,147.89,147.88,31.03691703]
[1741270120947,152.96929608,147.91,147.89,0.14216157]
[1741270121151,80.8,147.91,147.9,31.03691703]
[1741270122180,80.8,147.91,147.9,37.79821703]
[1741270122473,80.8,147.91,147.9,349.79821703]
[1741270122865,80.8,147.91,147.9,343.03691703]
[1741270123374,72.16929608,147.91,147.9,0.14216157]
[1741270123677,72.16929608,147.91,147.89,30.89475546]
[1741270123876,72.16929608,147.91,147.87,20.0]
[1741270124070,72.16929608,147.91,147.9,0.14216157]
[1741270124771,72.16929608,147.91,147.89,0.14216157]
[1741270124975,72.16929608,147.91,147.89,31.03691703]
[1741270125349,72.16929608,147.91,147.9,31.03691703]
[1741270126278,72.16929608,147.91,147.9,343.03691703]
[1741270127473,72.16929608,147.91,147.84,38.94235546]
[1741270127474,8.5313206,147.92,147.88,30.89475546]
[1741270127652,8.5313206,147.92,147.84,62.61645546]
[1741270127653,1.7708206,147.92,147.91,31.03691703]
[1741270128081,1.7708206,147.92,147.91,0.14216157]
[1741270128751,1.7708206,147.92,147.91,31.03691703]
[1741270129643,8.5312206,147.92,147.91,0.14216157]
[1741270130084,1.7708206,147.92,147.91,0.14216157]
[1741270130255,1.7708206,147.92,147.91,343.03691703]
[1741270131073,1.7708206,147.92,147.91,31.03691703]
[1741270133150,8.5312206,147.92,147.91,0.14216157]
[1741270133956,8.5312206,147.92,147.91,312.14216157]
[1741270134157,8.5312206,147.92,147.91,312.0]
[1741270134455,1.7708206,147.92,147.91,312.14216157]
[1741270134661,8.5312206,147.92,147.91,343.03691703]
[1741270134861,8.5312206,147.92,147.91,312.14216157]
[1741270135173,8.5312206,147.92,147.91,0.14216157]
[1741270135377,16.37554374,147.92,147.91,0.14216157]
[1741270135952,16.37554374,147.92,147.87,30.89475546]
[1741270136282,16.37554374,147.92,147.88,31.03691703]
[1741270136490,16.0912206,147.92,147.88,31.03691703]
[1741270136787,9.3308206,147.92,147.91,0.14216157]
[1741270136992,16.0912206,147.92,147.91,0.14216157]
[1741270137585,16.1212206,147.92,147.89,0.14216157]
[1741270137875,0.28432314,147.91,147.84,8.0476]
[1741270138081,154.2,147.9,147.86,30.89475546]
[1741270138275,6.7617,147.89,147.87,0.14216157]
[1741270138467,154.2,147.88,147.87,0.14216157]
[1741270138866,154.2,147.88,147.87,30.89475546]
[1741270139081,154.2,147.88,147.87,31.03691703]
[1741270140458,80.8,147.88,147.87,31.03691703]
[1741270140659,0.28432314,147.89,147.84,8.0476]
[1741270140879,154.2,147.88,147.84,30.89475546]
[1741270141070,154.2,147.88,147.85,0.14216157]
[1741270141269,154.2,147.88,147.85,31.03691703]
[1741270141461,154.2,147.88,147.85,30.89475546]
[1741270141661,154.2,147.88,147.86,0.14216157]
[1741270141860,154.48432314,147.87,147.82,30.89475546]
[1741270142175,154.48432314,147.87,147.83,30.89475546]
[1741270142559,161.24712314,147.87,147.83,30.89475546]
[1741270142779,161.24712314,147.87,147.84,0.14216157]
[1741270142980,161.24712314,147.87,147.83,30.89475546]
[1741270143195,154.48432314,147.87,147.83,30.89475546]
[1741270143370,154.48432314,147.87,147.84,0.14216157]
[1741270143371,161.24702314,147.87,147.84,0.14216157]
[1741270143580,154.48432314,147.87,147.84,0.14216157]
[1741270143905,154.2,147.87,147.84,31.03691703]
[1741270144475,80.8,147.86,147.85,31.03691703]
[1741270144671,80.8,147.86,147.85,349.80051703]
[1741270145181,80.8,147.86,147.85,31.03691703]
[1741270145383,80.8,147.86,147.85,0.14216157]
[1741270145682,73.4,147.86,147.85,0.14216157]
[1741270146878,80.1631,147.86,147.85,0.14216157]
[1741270147396,73.4,147.86,147.85,0.14216157]
[1741270147787,80.1631,147.86,147.85,0.14216157]
[1741270148103,73.4,147.86,147.85,0.14216157]
[1741270148305,73.4,147.86,147.85,312.14216157]
[1741270148802,73.4,147.86,147.85,349.80051703]
[1741270149207,73.4,147.86,147.85,31.03691703]
[1741270149580,73.4,147.86,147.85,37.80051703]
[1741270149987,73.4,147.89,147.85,0.14216157]
[1741270150205,14.3214,147.9,147.83,30.89475546]
[1741270150206,73.4,147.88,147.83,30.89475546]
[1741270150396,73.4,147.88,147.84,0.14216157]
[1741270150904,80.44692314,147.87,147.81,0.033]
[1741270151084,73.4,147.86,147.81,0.033]
[1741270151289,73.4,147.86,147.81,0.17516157]
[1741270151482,73.4,147.85,147.81,0.033]
[1741270151689,7.56,147.84,147.81,0.033]
[1741270152004,73.4,147.83,147.81,0.17516157]
[1741270152178,73.4,147.83,147.81,312.033]
[1741270152384,73.4,147.83,147.82,0.14216157]
[1741270153002,73.4,147.82,147.81,0.033]
[1741270153203,73.68432314,147.81,147.74,30.89475546]
[1741270153409,154.2,147.8,147.74,30.89475546]
[1741270153782,154.2,147.8,147.73,30.89475546]
[1741270153983,0.28432314,147.81,147.72,39.07925546]
[1741270153984,154.48432314,147.79,147.72,39.07925546]
[1741270154191,161.76,147.78,147.71,0.21324235]
[1741270154490,0.28432314,147.76,147.68,38.91425546]
[1741270154804,154.2,147.75,147.68,8.0195]
[1741270154979,154.2,147.74,147.68,8.0195]
[1741270155185,154.2,147.74,147.69,0.14216157]
[1741270155410,23.6885,147.75,147.67,0.033]
[1741270155411,154.2,147.73,147.67,0.033]
[1741270155707,161.76,147.72,147.69,312.0]
[1741270155909,154.2,147.71,147.69,312.0]
[1741270156983,154.2,147.71,147.7,0.14216157]
[1741270157889,154.2,147.7,147.67,0.033]
[1741270158992,6.7709,147.69,147.67,0.033]
[1741270159192,154.2,147.68,147.67,0.033]
[1741270160090,154.2,147.68,147.67,312.17516157]
[1741270160410,6.7705,147.7,147.67,312.033]
[1741270160586,6.7705,147.7,147.67,0.033]
[1741270160916,6.7713,147.68,147.67,0.033]
[1741270161103,80.171,147.69,147.67,0.033]
[1741270161912,73.4,147.69,147.67,0.033]
[1741270162629,73.4,147.7,147.67,0.17516157]
[1741270163017,80.1705,147.7,147.67,0.17516157]
[1741270163308,80.1705,147.7,147.67,0.033]
[1741270163826,80.1705,147.7,147.69,0.14216157]
[1741270166304,42.34634886,147.7,147.67,0.033]
[1741270166725,25.42014886,147.7,147.67,0.033]
[1741270167025,6.7705,147.7,147.67,0.033]
[1741270168931,6.77,147.71,147.67,0.033]
[1741270169237,6.77,147.71,147.68,0.14216157]
[1741270169405,73.4,147.7,147.68,0.14216157]
[1741270170333,80.8,147.69,147.68,0.14216157]
[1741270172101,87.5709,147.69,147.67,0.033]
[1741270172333,87.5711,147.69,147.67,0.033]
[1741270172738,87.5711,147.69,147.68,312.0]
[1741270172904,87.5711,147.69,147.68,312.14216157]
[1741270173100,24.484,147.72,147.69,0.14216157]
[1741270173303,160.97,147.71,147.67,0.17516157]
[1741270173511,154.2,147.71,147.67,31.06991703]
[1741270173711,154.2,147.71,147.67,0.17516157]
[1741270173924,154.2,147.71,147.67,0.033]
[1741270174237,154.2,147.7,147.67,0.033]
[1741270174403,154.2,147.69,147.67,0.033]
[1741270174605,38.64964886,147.68,147.67,0.033]
[1741270174841,45.42094886,147.68,147.67,0.033]
[1741270177436,154.2,147.7,147.67,0.033]
[1741270177611,80.94,147.69,147.67,0.17516157]
[1741270178339,80.94,147.69,147.67,0.033]
[1741270179528,73.4,147.68,147.67,31.06118337]
[1741270180521,73.4,147.68,147.67,343.06118337]
[1741270180833,73.4,147.73,147.68,0.14216157]
[1741270181010,73.4,147.72,147.71,31.02818337]
[1741270181342,73.4,147.72,147.71,0.14216157]
[1741270182359,23.6918,147.73,147.67,0.033]
[1741270182564,73.4,147.72,147.67,0.033]
[1741270182856,92.04964886,147.71,147.67,0.033]
[1741270183058,6.7704,147.7,147.67,0.033]
[1741270183228,73.4,147.69,147.67,0.033]
[1741270184253,7.54,147.68,147.67,0.033]
[1741270185127,14.3113,147.68,147.67,0.033]
[1741270185749,32.96094886,147.68,147.67,0.033]
[1741270187735,36.38309391,147.68,147.67,0.033]
[1741270189659,80.734,147.66,147.61,0.17516157]
[1741270189849,154.134,147.65,147.61,0.17516157]
[1741270191348,160.907,147.65,147.61,0.17516157]
[1741270192243,154.134,147.65,147.61,6.94966157]
[1741270192436,154.134,147.65,147.61,312.17516157]
[1741270193270,154.134,147.65,147.61,318.94966157]
[1741270193569,154.134,147.64,147.61,37.83568337]
[1741270193731,7.54,147.66,147.61,37.83568337]
[1741270193927,154.134,147.65,147.61,37.83568337]
[1741270194144,154.134,147.65,147.61,0.17516157]
[1741270195664,6.7732,147.64,147.61,0.17516157]
[1741270195843,154.134,147.63,147.61,0.033]
[1741270196044,154.134,147.62,147.61,0.033]
[1741270197769,6.7732,147.64,147.61,0.033]
[1741270198766,26.18964886,147.66,147.61,0.033]
[1741270198942,80.1727,147.65,147.61,0.033]
[1741270199960,80.1727,147.65,147.62,0.14216157]
[1741270200353,80.1727,147.65,147.61,0.033]
[1741270200354,18.64964886,147.64,147.61,0.033]
[1741270200962,6.7736,147.63,147.61,0.033]
[1741270201155,73.4,147.62,147.61,0.033]
[1741270202762,18.64964886,147.62,147.61,0.033]
[1741270202966,25.42374886,147.62,147.61,0.033]
[1741270204263,6.7741,147.62,147.61,0.033]
[1741270204846,6.7741,147.62,147.57,0.14216157]
[1741270204847,18.64964886,147.61,147.57,0.14216157]
[1741270205175,80.94,147.6,147.57,0.14216157]
[1741270205472,92.04964886,147.59,147.56,0.033]
[1741270205782,73.4,147.58,147.56,0.033]
[1741270205948,80.1764,147.57,147.56,0.033]
[1741270206149,18.64964886,147.56,147.52,0.033]
[1741270206346,18.64964886,147.54,147.52,0.033]
[1741270206566,26.16964886,147.53,147.52,0.033]
[1741270206749,7.52,147.53,147.52,0.033]
[1741270208269,14.2982,147.53,147.52,0.033]
[1741270208958,7.52,147.53,147.52,0.033]
[1741270210756,14.2982,147.53,147.52,0.033]
[1741270211463,7.52,147.53,147.52,0.033]
[1741270211668,14.2982,147.53,147.52,0.033]
[1741270213475,14.2982,147.53,147.47,7.8656]
[1741270213476,18.64964886,147.52,147.47,0.033]
[1741270213666,18.64964886,147.52,147.48,0.14216157]
[1741270214087,6.7787,147.52,147.48,0.14216157]
[1741270214288,6.7787,147.52,147.47,0.17516157]
[1741270214954,6.7787,147.52,147.47,0.033]
[1741270215574,6.7787,147.52,147.47,0.17516157]
[1741270216083,6.7787,147.52,147.47,0.033]
[1741270216261,154.2,147.51,147.48,19.47351302]
[1741270216456,154.2,147.51,147.48,0.14216157]
[1741270216660,154.2,147.51,147.5,19.47351302]
[1741270216865,80.8,147.51,147.5,19.47351302]
[1741270217373,80.8,147.51,147.5,331.47351302]
[1741270217893,80.8,147.51,147.5,312.14216157]
[1741270218371,80.8,147.51,147.5,331.47351302]
[1741270218554,6.7789,147.52,147.5,312.14216157]
[1741270218961,6.7789,147.52,147.5,0.14216157]
[1741270219171,6.7782,147.54,147.5,0.14216157]
[1741270219358,154.2,147.53,147.5,0.14216157]
[1741270219563,154.2,147.52,147.49,7.8871]
[1741270219772,154.2,147.52,147.5,0.14216157]
[1741270221469,160.9788,147.52,147.5,0.14216157]
[1741270221667,154.2,147.52,147.5,0.14216157]
[1741270222065,154.2,147.52,147.51,312.14216157]
[1741270222868,80.8,147.52,147.51,312.14216157]
[1741270223260,80.8,147.52,147.51,331.47351302]
[1741270223459,72.4667,147.52,147.51,331.47351302]
[1741270223787,73.4,147.56,147.51,331.47351302]
[1741270223788,73.4,147.56,147.52,0.14216157]
[1741270224088,73.4,147.56,147.55,0.14216157]
[1741270224391,66.0,147.57,147.56,0.14216157]
[1741270224762,72.7764,147.57,147.53,0.14216157]
[1741270225159,66.0,147.57,147.53,19.47351302]
[1741270226284,72.7765,147.57,147.53,19.47351302]
[1741270226890,72.7764,147.57,147.56,312.14216157]
[1741270227191,72.7764,147.57,147.56,320.15606157]
[1741270227386,66.0,147.57,147.56,320.15606157]
[1741270228979,66.0,147.57,147.56,312.14216157]
[1741270229184,72.7764,147.57,147.52,8.2706]
[1741270229485,66.0,147.56,147.52,8.2706]
[1741270229661,66.0,147.56,147.53,0.14216157]
[1741270229861,66.0,147.56,147.52,8.2706]
[1741270230260,6.7773,147.55,147.53,0.14216157]
[1741270230570,23.7207,147.55,147.49,19.33135145]
[1741270230774,66.0,147.54,147.48,27.28425145]
[1741270231079,73.52,147.54,147.48,27.28425145]
[1741270231287,154.32,147.54,147.48,27.28425145]
[1741270231585,146.8,147.53,147.48,7.9529]
[1741270232168,146.8,147.52,147.5,312.0]
[1741270232375,153.5792,147.51,147.5,312.0]
[1741270232701,6.7792,147.51,147.5,312.0]
[1741270232994,6.7792,147.51,147.47,0.033]
[1741270233196,146.8,147.5,147.47,0.033]
[1741270234005,146.8,147.49,147.47,0.033]
[1741270234180,7.52,147.48,147.47,0.033]
[1741270234381,14.3005,147.48,147.47,0.033]
[1741270238590,14.3005,147.48,147.46,0.033]
[1741270238789,14.3005,147.48,147.43,0.0001]
[1741270238790,20.0,147.45,147.43,0.0001]
[1741270240921,6.7824,147.44,147.43,0.0001]
[1741270241287,14.3024,147.44,147.43,0.0001]
[1741270244187,6.7824,147.44,147.43,0.0001]
[1741270244395,14.3024,147.44,147.43,0.0001]
[1741270245485,6.7824,147.44,147.43,0.0001]
[1741270245702,7.52,147.44,147.43,0.0001]
[1741270246004,7.52,147.46,147.43,0.0001]
[1741270246911,14.3015,147.46,147.43,0.0001]
[1741270247110,7.52,147.46,147.44,0.14216157]
[1741270247416,7.52,147.46,147.45,18.79181043]
[1741270247619,16.9491,147.5,147.46,0.14216157]
[1741270247797,7.52,147.49,147.46,0.14216157]
[1741270247993,7.52,147.49,147.44,0.14216157]
[1741270248193,154.32,147.49,147.44,0.14216157]
[1741270248422,146.8,147.48,147.44,0.14216157]
[1741270249014,6.781,147.47,147.44,0.14216157]
[1741270249212,146.8,147.46,147.44,0.14216157]
[1741270250509,23.7336,147.47,147.44,0.14216157]
[1741270250510,146.8,147.45,147.44,0.14216157]
[1741270250810,146.8,147.45,147.44,330.79181043]
[1741270251015,153.5819,147.45,147.44,330.79181043]
[1741270251400,146.8,147.45,147.44,330.79181043]
[1741270252312,153.5819,147.45,147.44,330.79181043]
[1741270252805,146.8,147.45,147.44,18.79181043]
[1741270253393,153.5819,147.45,147.44,18.79181043]
[1741270254489,146.8,147.45,147.44,18.79181043]
[1741270254891,153.5819,147.45,147.44,18.79181043]
[1741270255313,153.6119,147.45,147.44,18.79181043]
[1741270255511,6.8119,147.45,147.44,18.79181043]
[1741270256013,6.8119,147.45,147.44,330.79181043]
[1741270257218,0.03,147.45,147.43,0.0001]
[1741270261023,6.8119,147.45,147.43,0.0001]
[1741270262415,153.5824,147.44,147.43,0.0001]
[1741270262594,6.7824,147.44,147.43,0.0001]
[1741270263416,6.7824,147.44,147.43,312.14226157]
[1741270263904,6.7824,147.44,147.43,0.14226157]
[1741270264502,20.03,147.45,147.44,0.14216157]
[1741270264710,20.0,147.44,147.43,0.0001]
[1741270266119,2.0,147.43,147.36,0.033]
[1741270266302,0.03,147.45,147.33,7.6948]
[1741270266303,9.5,147.42,147.33,7.6948]
[1741270266502,25.7448,147.4,147.32,0.033]
[1741270266703,12.8684,147.39,147.32,0.033]
[1741270266919,161.56,147.38,147.32,312.033]
[1741270267221,146.8,147.37,147.32,0.033]